Cogmind - Beta 10.2 @@@ ROGUE MODE // 2021.07.30 @ 02:26:03 Player: Demise Result: Destroyed by Executioner with Helical Railgun Performance ------------- Evolutions (9) 4500 Regions Visited (30) 6000 Robots Destroyed (607) 3035 Value Destroyed (34910) 34910 Prototype IDs (67) 1340 Alien Tech Used (0) 0 Bonus (20451) 20451 TOTAL SCORE: 70236 Bonus ------- Triggered High Security 500 High Alert Combat Kills 12670 Follower Combat Kills 3475 Entered Garrisons 2000 Used RIF Installer 5000 Aligned with FarCom 300 Scanned by Researcher 500 Friendly Fire -3994 Cogmind --------- Core Integrity 0/1600 Matter 300/300 Energy 99/100 System Corruption 55% Temperature Cool (0) Movement Core (50) Location -1/Access Parts ------- > --- POWER (2) -------- (None) > --- PROPULSION (4) --- (None) > --- UTILITY (17) ----- (None) > --- WEAPON (2) ------- (None) > --- INVENTORY (4) ---- Advanced Energy Well (800) YI-UF0's Bottomless Matter Pit (1500) Long-range Tractor Beam Enhanced Nova Cannon Peak State ------------ > --- POWER ------------ Light Quantum Reactor Light Quantum Reactor > --- PROPULSION ------- Advanced Heavy Treads Biometal Heavy Treads > --- UTILITY ---------- Advanced Heat Sink Advanced Heat Sink High-capacity Storage Unit High-capacity Storage Unit Experimental Energy Well Advanced Launcher Guidance Computer Quantum Capacitor Centrium Light Armor Plating Experimental Focal Shield Advanced Thermal Shield System Shield Relay Coupler [NC] Relay Coupler [C] Relay Coupler [ARC] Relay Coupler [Sentry] Relay Coupler [Hunter] > --- WEAPON ----------- Enhanced Nova Cannon Nanosword > --- INVENTORY -------- Light Quantum Reactor Combat Antigrav System Advanced Power Amplifier Advanced Energy Well Advanced Energy Well YI-UF0's Bottomless Matter Pit Improved Focal Shield Relay Coupler [NC] Relay Coupler [NC] Relay Coupler [NC] Relay Coupler [C] Relay Coupler [C] Relay Coupler [Demolisher] Relay Coupler [Behemoth] Long-range Tractor Beam HERF Cannon Enhanced Nova Cannon Tesla Bomb Launcher Gamma Bomb Array Advanced Remote Datajack [Rating: 176] Favorites ----------- Power Light Antimatter Reactor Engine Reinforced Deuterium Engine Power Core Light Nuclear Core Reactor Light Antimatter Reactor Propulsion Heavy Treads Treads Heavy Treads Leg Aluminum Leg Wheel Armored Wheel Flight Unit Flight Unit Utility High-capacity Storage Unit Device Advanced Cooling System Storage High-capacity Storage Unit Processor Advanced Launcher Guidance Computer Hackware Hacking Suite Protection Improved Light Armor Plating Weapon Tesla Bomb Launcher Energy Gun Enhanced Quantum Rifle Energy Cannon Enhanced Nova Cannon Ballistic Gun Heavy Assault Rifle Launcher Tesla Bomb Launcher Special Weapon Advanced Remote Datajack Impact Weapon Power Maul Slashing Weapon Power Sword Special Melee Weapon Datajack Build | -11 -10 -10 -9 -9 -9 -8 -8 -8 -8 -7 -7 -7 -7 -7 -7 -6 -6 -5 -5 -4 -4 -3 -3 -3 -3 -2 -2 -2 -2 -1 ------- Run | Scr Mat Min Mat Min Exi Min Mat Gar Mat Fac Was Fac Gar Fac Gar Fac Gar Fac Gar Fac Gar Res Gar Res Gar Res Gar Res Gar Acc Slots Evolved 18 | . . . 2 . . . 2 . . 2 . . . . . 2 . 2 . 2 . 2 . . . 2 . . . 2 Power 1 | . . . . . . . . . . . . . . . . . . . . . . 1 . . . . . . . . Propulsion 2 | . . . . . . . . . . . . . . . . . . . . 2 . . . . . . . . . . Utility 15 | . . . 2 . . . 2 . . 2 . . . . . 2 . 2 . . . 1 . . . 2 . . . 2 Weapon . | . . . . . . . . . . . . . . . . . . . . . . . . . . . . . . . Parts Attached 678 | 5 20 21 65 7 3 5 45 5 8 35 9 8 21 9 8 4 33 19 30 50 19 20 26 8 19 34 24 1 12 105 Power 58 | . 3 1 7 . . . 3 . . 3 2 . 2 . . . 2 . 2 1 2 1 6 2 1 5 1 . 4 10 Engine 21 | . 3 1 7 . . . 3 . . 2 . . 2 . . . 1 . 2 . . . . . . . . . . . Core 3 | . . . . . . . . . . 1 1 . . . . . . . . . . . . . . . . . . 1 Reactor 34 | . . . . . . . . . . . 1 . . . . . 1 . . 1 2 1 6 2 1 5 1 . 4 9 Propulsion 85 | 2 4 5 16 3 . . 2 . 1 6 2 3 2 . 4 . 2 1 . 3 1 3 1 . 1 2 3 . 1 17 Treads 70 | 2 4 . 14 2 . . 2 . 1 6 2 3 2 . 2 . 2 1 . 3 1 3 1 . 1 2 3 . 1 12 Leg 7 | . . . 2 . . . . . . . . . . . . . . . . . . . . . . . . . . 5 Wheel 6 | . . 3 . 1 . . . . . . . . . . 2 . . . . . . . . . . . . . . . Hover . | . . . . . . . . . . . . . . . . . . . . . . . . . . . . . . . Flight 2 | . . 2 . . . . . . . . . . . . . . . . . . . . . . . . . . . . Utility 243 | 1 7 . 12 3 2 1 13 2 2 15 3 1 10 2 . 3 12 11 13 26 6 13 10 3 8 14 13 1 5 31 Device 100 | 1 3 . . . . . . . . 1 2 . 2 1 . 2 7 2 6 11 2 7 4 3 4 7 10 1 4 20 Storage 21 | . 3 . 4 1 1 . 3 . . . . . . . . . . . 1 3 . 1 . . . 2 1 . . 1 Processor 7 | . 1 . 2 . . . 1 . . . . . . . . . . 1 . . . . 1 . . 1 . . . . Hackware 48 | . . . . . . . . . 1 8 . 1 6 1 . . 1 6 2 4 3 3 3 . 1 3 . . 1 4 Protection 67 | . . . 6 2 1 1 9 2 1 6 1 . 2 . . 1 4 2 4 8 1 2 2 . 3 1 2 . . 6 Artifact . | . . . . . . . . . . . . . . . . . . . . . . . . . . . . . . . Weapon 292 | 2 6 15 30 1 1 4 27 3 5 11 2 4 7 7 4 1 17 7 15 20 10 3 9 3 9 13 7 . 2 47 Energy Gun 5 | . . . . . . . . . . 1 . . . . . . 1 . . . . . . . . 3 . . . . Energy Cannon 50 | . 2 2 . 1 . 1 1 . . . 1 . . . . . . . . 6 1 . 3 1 2 5 1 . 1 22 Ballistic Gun 90 | 2 3 6 22 . . 2 18 1 2 5 . 3 1 3 1 . 5 3 5 3 1 1 . . . . 3 . . . Ballistic Cannon . | . . . . . . . . . . . . . . . . . . . . . . . . . . . . . . . Launcher 63 | . 1 6 2 . . 1 2 2 1 . . . 1 . 1 . 5 . 5 4 4 1 1 . 3 3 2 . 1 17 Special Weapon 37 | . . . 6 . . . 4 . . 1 . 1 3 1 1 1 3 1 1 3 2 . 3 1 . . . . . 5 Impact Weapon 10 | . . . . . . . 2 . 1 4 1 . 2 . . . . . . . . . . . . . . . . . Slashing Weapon 35 | . . 1 . . . . . . . . . . . 3 1 . 3 3 4 4 2 1 2 1 4 2 1 . . 3 Piercing Weapon . | . . . . . . . . . . . . . . . . . . . . . . . . . . . . . . . Special Melee Weapon 2 | . . . . . 1 . . . 1 . . . . . . . . . . . . . . . . . . . . . Unidentified Prototypes 13 | . . . . 1 . 1 . . . . . . . . . . . . . . . 2 . 1 . 3 . . 1 4 Parts Lost 107 | . 2 3 7 2 . 1 7 1 . 12 . . 2 . 1 2 . 1 3 3 1 8 4 . . 7 2 . . 38 Power 13 | . . 1 2 . . . 1 . . 1 . . 1 . . . . . 1 . . . 1 . . 1 . . . 4 Propulsion 23 | . . 2 2 1 . . 1 . . 3 . . 1 . 1 . . . . 1 . 2 1 . . . 1 . . 7 Utility 55 | . 1 . . . . 1 3 1 . 6 . . . . . 1 . 1 2 2 1 6 2 . . 5 1 . . 22 Weapon 16 | . 1 . 3 1 . . 2 . . 2 . . . . . 1 . . . . . . . . . 1 . . . 5 Highest Loss Streak 17 | . 1 2 2 1 . 1 2 1 . 10 . . 1 . 1 1 . 1 2 2 1 5 2 . . 3 2 . . 17 Average Slot Usage (%) 89 | . 83 96 99 96 72 77 82 99 100 96 87 84 93 98 99 98 98 84 92 86 88 84 89 85 80 84 86 91 86 79 Engine 3 | . 3 13 10 11 11 11 8 9 9 4 1 . 1 7 7 6 5 . . 1 . . . . . . . . . . Reactor 4 | . . . . . . . . . . . 4 7 4 . . . . 5 4 3 5 7 8 9 9 7 8 8 8 7 Treads 10 | . 28 12 19 16 . . 3 18 18 14 7 7 9 15 4 . 10 5 5 9 9 9 12 9 9 8 10 8 8 7 Wheel 1 | . . 12 . 2 11 11 7 . . . . . . . 10 13 2 . . . . . . . . . . . . . Device 8 | . 8 14 . . . . . . . . . . 5 . . 8 15 4 9 8 12 8 18 14 14 15 16 17 13 14 Storage 18 | . 8 14 22 33 27 22 19 27 27 23 23 23 23 23 23 20 20 17 17 15 15 14 14 14 14 13 13 17 17 13 Processor 3 | . 5 . 10 . . . 5 9 9 . . . . . . . . 4 5 1 . . 3 4 4 5 6 4 4 3 Hackware 18 | . . . . . . . . . . 27 30 34 31 36 38 32 16 23 28 27 28 26 15 19 14 20 21 21 21 21 Protection 5 | . . . 10 10 1 11 19 17 17 6 5 . . . . 3 11 7 5 5 5 6 4 4 3 3 2 4 4 2 Ballistic Gun 5 | . 24 11 21 14 11 16 15 11 14 10 3 3 2 4 1 5 2 4 1 2 . 1 . . . . . . . . Launcher 1 | . . 1 . . . 2 . 6 2 . . . . . 7 . 3 . 1 . 2 . 3 . 1 . 2 4 3 1 Special Weapon 1 | . . . . . . . 1 . . 1 . 2 5 4 . . 1 1 3 1 3 3 . 4 4 2 . . . . Slashing Weapon 2 | . . 1 . . . . . . . . . . . 4 4 6 3 4 3 1 1 3 3 3 1 3 3 4 4 2 Naked Turns 39 | . . . . . . . . . . . . . . . . . . . . . . . . . . . . . . 39 Heaviest Build 182 | 3 28 30 65 70 123 119 121 118 116 120 127 120 127 119 124 124 143 167 160 171 154 175 182 171 180 178 180 168 175 175 Greatest Support 150 | 3 40 40 40 40 28 28 42 42 42 48 70 70 70 50 50 24 60 70 70 140 140 140 140 140 140 150 150 140 140 145 Greatest Overweight (x) 59 | . 2 9 2 3 4 4 4 2 2 5 2 1 41 2 10 5 5 2 2 2 1 3 53 1 59 1 58 1 2 3 Average Overweight (x) 1 | . . . 1 1 3 4 3 2 2 2 1 1 3 2 4 4 2 1 1 . 1 1 6 1 1 . 1 1 1 . Largest Inventory Capacity 48 | 4 10 10 22 22 36 30 48 28 28 28 28 28 28 28 28 28 28 28 28 36 28 28 28 28 28 28 28 28 28 28 Average Capacity 26 | 4 7 10 16 22 30 30 29 28 28 28 28 28 28 28 28 28 28 28 28 28 28 28 28 28 28 28 28 28 28 23 Most Carried 30 | 4 10 10 22 22 28 27 30 28 28 28 28 28 28 28 28 28 28 28 28 28 28 28 28 28 28 28 28 28 28 28 Average Carried 25 | 3 6 9 15 21 25 26 29 27 27 22 27 26 27 27 27 27 27 27 27 27 27 27 27 27 27 27 27 27 27 22 Final Capacity 30 | 4 10 10 22 22 30 30 28 28 28 28 28 28 28 28 28 28 28 28 28 28 28 28 28 28 28 28 28 28 28 4 Final Carried 28 | 4 10 10 20 22 24 26 28 28 27 28 27 28 28 27 28 28 28 28 28 28 28 28 28 28 28 28 28 28 28 4 Class Distribution -------------------- 26% | Botlord-Mutant 25% | Hacker-Mutant 23% | Bothacker-Mutant 13% | Hauler-Mutant 6% | Scavenger-Mutant 4% | Mutant Dominant Class ---------------- Mutant | -10/Materials Mutant | -10/Mines Scavenger-Mutant | -9/Materials Hauler-Mutant | -9/Mines Hauler-Mutant | -9/Exiles Hauler-Mutant | -8/Mines Hauler-Mutant | -8/Materials Hauler-Mutant | -8/Garrison Hauler-Mutant | -8/Materials Hacker-Mutant | -7/Factory Hacker-Mutant | -7/Waste Hacker-Mutant | -7/Factory Hacker-Mutant | -7/Garrison Hacker-Mutant | -7/Factory Hacker-Mutant | -7/Garrison Bothacker-Mutant | -6/Factory Bothacker-Mutant | -6/Garrison Bothacker-Mutant | -5/Factory Bothacker-Mutant | -5/Garrison Hacker-Mutant | -4/Factory Hacker-Mutant | -4/Garrison Botlord-Mutant | -3/Research Bothacker-Mutant | -3/Garrison Botlord-Mutant | -3/Research Botlord-Mutant | -3/Garrison Botlord-Mutant | -2/Research Botlord-Mutant | -2/Garrison Botlord-Mutant | -2/Research Botlord-Mutant | -2/Garrison Botlord-Mutant | -1/Access Resources | -11 -10 -10 -9 -9 -9 -8 -8 -8 -8 -7 -7 -7 -7 -7 -7 -6 -6 -5 -5 -4 -4 -3 -3 -3 -3 -2 -2 -2 -2 -1 ----------- Run | Scr Mat Min Mat Min Exi Min Mat Gar Mat Fac Was Fac Gar Fac Gar Fac Gar Fac Gar Fac Gar Res Gar Res Gar Res Gar Res Gar Acc Matter Collected 18833 | 272 579 189 1559 647 100 106 1697 285 332 681 804 89 837 215 305 . 869 252 876 1226 606 331 694 40 977 438 906 . 785 2136 Remotely 1264 | 60 139 . . . . . . . . 194 . . . . . . . . . 158 . . . . . 177 . . . 536 Salvage Created 36817 | 105 952 278 2175 500 . 69 1891 365 171 282 527 190 894 392 799 30 1855 300 1649 1609 885 224 2173 271 2474 1871 1362 . 2345 10179 Parts 1526 | 3 63 34 142 30 . 3 112 21 13 18 8 10 31 20 29 . 76 24 81 73 30 4 85 6 75 87 61 . 80 307 Haulers Intercepted 13 | . 2 . 5 . . . 2 . . . . . . . . . . . . 1 . 1 . . . . . . . 2 Recyclers Shooed 6 | 1 . . . . . . 1 . . . . . . . . . . . . 1 . . . . . 2 . . . 1 Parts Field Recycled . | . . . . . . . . . . . . . . . . . . . . . . . . . . . . . . . Retrieved Matter . | . . . . . . . . . . . . . . . . . . . . . . . . . . . . . . . Parts Self-Destructed . | . . . . . . . . . . . . . . . . . . . . . . . . . . . . . . . Prevented . | . . . . . . . . . . . . . . . . . . . . . . . . . . . . . . . Kills | -11 -10 -10 -9 -9 -9 -8 -8 -8 -8 -7 -7 -7 -7 -7 -7 -6 -6 -5 -5 -4 -4 -3 -3 -3 -3 -2 -2 -2 -2 -1 ------- Run | Scr Mat Min Mat Min Exi Min Mat Gar Mat Fac Was Fac Gar Fac Gar Fac Gar Fac Gar Fac Gar Res Gar Res Gar Res Gar Res Gar Acc Combat Hostiles Destroyed 505 | . 22 16 43 5 . 3 38 10 2 5 . 3 17 8 11 1 25 3 28 24 10 1 24 3 33 18 17 . 25 110 Melee 8 | . . 1 . . . . . . . . . . . . . 1 . . . 1 . . 1 . . . 1 . . 3 Guns 133 | . 20 1 43 3 . . 28 1 2 5 . 3 2 8 . . 2 3 4 5 1 . . . . 1 1 . . . Cannons 45 | . . . . 2 . 1 1 . . . . . . . . . . . . 6 2 . 1 . . 6 2 . 1 23 AOE 183 | . 2 14 . . . 2 9 8 . . . . 11 . 7 . 16 . 14 10 7 . 10 . 17 2 6 . 10 38 Classes Destroyed 23 | 2 5 1 3 1 . 1 . . . 1 . . . . . . 1 . . . . . . . 1 2 1 . . 4 Worker 14 | . . 1 4 1 . . . . . . . . . . . . . 3 . . . . . . . . . . . 5 Builder 15 | . . . . 3 . . 1 . . . . . . . . . . 1 . . . . . . . 6 . . . 4 Tunneler 4 | 1 . 1 . . . . 1 . . . . . . . . . . . . . . . . . . . . . . 1 Hauler 13 | . 2 . 5 . . . 2 . . . . . . . . . . . . 1 . 1 . . . . . . . 2 Recycler 4 | 1 . 1 . 1 . . 1 . . . . . . . . . . . . . . . . . . . . . . . Carrier 1 | . . . . . . . . . . . . . . . . . . . . . . . . . . . . . . 1 Mechanic 2 | . . . . . . . . . . . . . . . . . . . . . . . . . . 1 . . . 1 Operator 14 | . 1 . 5 . . . 3 . . . . 2 . 2 . . . 1 . . . . . . . . . . . . Watcher 20 | . 3 . 5 . . . 3 1 2 . . . . . . . . 1 . . 1 . . . . . . . . 4 Swarmer 115 | . 5 12 7 . . . 9 4 . . . . 3 2 7 1 6 . 10 3 2 . 12 . 8 . 4 . 7 13 Saboteur 7 | . . . . . . . . . . . . . . . . . . . . . . . . . 2 . . . . 5 Grunt 224 | . 17 4 24 5 . 2 22 5 . 1 . 3 14 5 . . 12 . 11 10 4 . 2 2 17 6 6 . 8 44 Brawler 22 | . . . 1 . . . . . . 1 . . . . . . . . . 1 . . 2 1 . . . . 1 15 Duelist 9 | . . . 1 . . . . . . . . . . . . . . . . 1 . . . . . 1 . . 1 5 Protector 6 | . . . . . . . . . . . . . . . . . . . . . . . . . . 1 1 . . 4 Sentry 51 | . . . 10 . . . 6 1 2 1 . . . . 2 . 5 1 4 . 4 . 2 . 6 4 . . 2 1 Demolisher 1 | . . . . . . . . . . . . . . . . . . . . . . . . . . . 1 . . . Hunter 34 | . . . . . . 1 1 . . . . . . . 2 . . . . 2 . . 7 . . 2 2 . 4 13 Programmer 36 | . . . . . . . . . . 2 . . . 1 . . 1 2 . 7 1 . . . . 5 2 . 1 14 Behemoth 9 | . . . . . . . . . . . . . . . . . 1 . 3 . . 1 1 . 1 . 1 . 1 . Investigator 2 | . . . . . . . . . . . . . . . . . . . . . . . . . . . . . . 2 Striker 2 | . . . . . . . . . . . . . . . . . . . . . . . . . . . . . . 2 Executioner 1 | . . . . . . . . . . . . . . . . . . . . . . . . . . . . . . 1 Best Kill Streak 14 | 2 5 4 5 5 . 2 7 4 2 1 . 3 13 3 5 1 6 2 10 5 5 1 7 3 14 10 7 . 7 14 Combat Bots Only 14 | . 5 3 5 5 . 2 7 4 1 1 . 3 13 3 5 1 6 2 10 5 5 1 7 3 14 5 7 . 7 12 Max Kills in Single Turn 4 | 1 1 3 2 2 . 1 3 3 1 1 . 1 3 1 2 1 2 1 3 2 2 1 2 1 4 4 2 . 2 4 Gunslinging 1 | . . . . 1 . . 1 . . . . . . . . . . . . . . . . . . . . . . . Exploded 4 | . 1 3 . . . 1 3 3 . . . . 3 . 2 . 2 . 3 2 2 . 2 . 4 1 1 . 2 3 Melee 1 | . . 1 . . . . . . . . . . . . . 1 . . . 1 . . 1 . . . 1 . . 1 Uniques/NPCs Destroyed 1 | . . . . 1 . . . . . . . . . . . . . . . . . . . . . . . . . . YI-UF0 (-9/Mines) Combat | -11 -10 -10 -9 -9 -9 -8 -8 -8 -8 -7 -7 -7 -7 -7 -7 -6 -6 -5 -5 -4 -4 -3 -3 -3 -3 -2 -2 -2 -2 -1 -------- Run | Scr Mat Min Mat Min Exi Min Mat Gar Mat Fac Was Fac Gar Fac Gar Fac Gar Fac Gar Fac Gar Res Gar Res Gar Res Gar Res Gar Acc Damage Taken 30272 | . 736 504 2472 190 . 283 2091 103 199 1599 . 288 451 395 500 106 737 97 794 2223 1298 1192 888 79 780 1657 586 247 576 9201 Core 3752 | . 135 96 317 33 . 35 226 . 44 124 . 34 94 92 80 14 135 . 59 147 137 36 34 . 45 101 45 17 48 1624 Absorbed by Shields 3756 | . . . . . . . . . . . . . . . . . 203 37 342 177 377 148 605 . . 314 388 262 547 356 Reduced by Siege Mode 1213 | . . . . . . . . . . . . 17 15 . . . . 1 31 248 129 . 22 4 30 83 57 . 61 515 Core Remaining (%) 62 | 100 . 7 . . . 3 . . 50 . . . . . 39 . 82 . 94 . 75 . . . 91 . . . 85 . Volleys Fired 1717 | 11 83 25 222 24 . 11 193 25 21 45 9 7 61 21 28 2 65 10 79 90 74 17 63 9 77 63 50 . 93 239 Largest 2 | 2 2 2 2 2 . 2 2 2 2 2 1 2 2 2 1 1 2 2 2 2 1 1 2 1 1 1 2 . 1 2 Hottest 240 | 40 112 112 100 76 . 76 100 46 46 75 56 56 56 56 46 30 56 56 56 179 98 50 192 94 94 120 120 . 120 240 Shots Fired 2315 | 22 164 38 419 44 . 15 333 30 35 78 11 13 68 35 28 2 71 16 88 104 75 17 66 9 77 63 58 . 92 244 Gun 1197 | 22 159 7 399 24 . 4 283 18 28 73 2 12 15 28 . 1 13 12 18 30 17 . . . . 15 17 . . . Cannon 342 | . 2 19 . 20 . 4 3 . . . 9 . . . . . . . . 49 23 . 22 8 10 29 5 . 4 135 Launcher 580 | . 3 12 3 . . 7 9 12 7 . . . 19 . 25 . 47 . 54 11 25 9 38 . 61 19 36 . 88 95 Special 196 | . . . 17 . . . 38 . . 5 . 1 34 7 3 1 11 4 16 14 10 8 6 1 6 . . . . 14 Kinetic 1178 | 22 159 7 399 24 . 4 283 18 28 69 2 12 15 28 . 1 13 12 18 30 17 . . . . . 17 . . . Thermal 249 | . . . 17 . . . 38 . . . . . . . . . . . . 48 21 . 8 . . 31 5 . 4 77 Explosive 42 | . 3 12 3 . . 7 1 2 . . . . . . . . 5 . . 2 7 . . . . . . . . . Electromagnetic 704 | . 2 19 . 20 . 4 11 10 7 4 9 . 19 . 25 . 42 . 54 10 20 9 52 8 71 32 36 . 88 152 Robot Hit Streak 38 | 5 17 5 18 14 . 19 18 7 29 34 17 18 19 10 3 4 9 4 20 25 25 10 38 8 21 16 34 . 19 34 Robot Miss Streak 7 | 2 4 2 5 1 . 4 4 2 . 2 . . 2 7 . . 2 . 1 5 1 4 1 . 1 2 1 . 1 2 Penetration Max 1 | . . . . . . . . . . . . . . . . . . . . . 1 . . . . . . . . . Secondary Targets 13 | . 2 . 7 1 . . 1 . . . . . . 1 . . . . . 1 . . . . . . . . . . Max Gunslinging Chain 1 | . 1 . 1 1 . . 1 . . . . . . 1 . . . . . 1 . . . . . . . . . . Capacitor 62 | . . . . . . . . . . . . . . . . . . . . . . . . . . . . . . 62 Shots Hit Robots 1439 | 14 118 20 303 33 4 10 214 12 29 59 12 2 39 15 9 2 22 12 34 76 43 20 41 8 16 40 30 1 21 180 Core Hits 1177 | 4 61 30 112 16 . 9 91 15 9 16 3 19 26 30 19 1 56 30 61 71 44 4 35 3 51 39 35 . 41 246 Critical Hits 13 | . 1 . . . . . 4 . . 1 . . . . . . . . . 1 2 1 . 1 . 1 . . . 1 Critical Kills 6 | . 1 . . . . . 1 . . 1 . . . . . . . . . . 1 1 . . . . . . . 1 Critical Parts Destroyed 7 | . . . . . . . 3 . . . . . . . . . . . . 1 1 . . 1 . 1 . . . . Melee Attacks 298 | . . 1 . . 4 . 3 . 3 9 3 16 22 13 11 14 18 36 10 14 5 11 11 7 6 31 13 1 3 33 Impact 54 | . . . . . . . 3 . 1 9 3 16 22 . . . . . . . . . . . . . . . . . Slashing 238 | . . 1 . . . . . . . . . . . 13 11 14 18 36 10 14 5 11 11 7 6 31 13 1 3 33 Piercing . | . . . . . . . . . . . . . . . . . . . . . . . . . . . . . . . Sneak Attacks 16 | . . . . . 4 . . . . . . . 2 1 . . . 4 . . . 1 . . . 3 . 1 . . Combat Hostiles 2 | . . . . . . . . . . . . . 2 . . . . . . . . . . . . . . . . . Follow-up Attacks . | . . . . . . . . . . . . . . . . . . . . . . . . . . . . . . . Damage Inflicted 69212 | 127 1129 1184 3687 553 . 524 3973 649 541 995 452 340 1647 731 1673 34 3256 1041 3162 2876 3169 663 3795 323 3869 3716 2474 172 4023 18434 Guns 12908 | 127 940 27 3436 190 . 35 3157 75 415 962 22 274 165 561 . . 327 386 363 618 382 . . . . 122 324 . . . Cannons 9505 | . 50 314 . 299 . 94 61 . . . 158 . . . . . . . . 1053 484 . 725 323 210 964 217 . 103 4450 Explosions 41962 | . 139 816 238 64 . 395 755 574 126 . . . 1275 . 1238 . 2929 . 2799 1113 2042 269 2681 . 3659 1907 1863 . 3920 13160 Melee 4740 | . . 27 . . . . . . . . 272 42 207 170 435 34 . 655 . 92 261 394 389 . . 723 70 172 . 797 Ramming 97 | . . . 13 . . . . . . 33 . 24 . . . . . . . . . . . . . . . . . 27 Kinetic 12727 | 127 940 27 3436 190 . 35 3157 75 415 903 22 274 165 561 . . 327 386 363 618 382 . . . . . 324 . . . Thermal 8739 | . . 52 . 64 . 47 201 67 . . . . . . 39 . 320 . . 1335 484 . 273 . 199 788 287 . 277 4306 Explosive 3740 | . 139 764 238 . . 348 223 270 . . . . . . . . 118 . . 218 772 78 . . . . . . . 572 Electromagnetic 39169 | . 50 314 . 299 . 94 392 237 126 59 158 . 1275 . 1199 . 2491 . 2799 613 1270 191 3133 323 3670 2205 1793 . 3746 12732 Impact 521 | . . . . . . . . . . . 272 42 207 . . . . . . . . . . . . . . . . . Slashing 4219 | . . 27 . . . . . . . . . . . 170 435 34 . 655 . 92 261 394 389 . . 723 70 172 . 797 Piercing . | . . . . . . . . . . . . . . . . . . . . . . . . . . . . . . . Highest Corruption 55 | . 2 2 . . . . . . . 21 21 21 21 1 1 . 1 . . 4 6 13 13 . . 2 9 . 2 55 Average Corruption 8 | . 2 2 . . . . . . . 18 21 21 13 1 1 . 1 . . 3 3 9 8 . . 1 4 . 1 6 Corruption Purged 70 | . . . . . . . . . . . . . 22 . . . 1 . . . 7 . 14 . . 1 12 . 2 11 Effects 601 | . . 8 . . . . . . . 105 54 94 71 1 6 . . . . 31 14 13 80 . . . 37 . 7 80 Message Errors 121 | . . 4 . . . . . . . 15 9 19 15 1 3 . . . . 7 1 4 16 . . . 6 . 2 19 Matter Fused 105 | . . . . . . . . . . 16 8 16 13 . . . . . . 8 5 1 18 . . . 7 . . 13 Heat Flow Errors 72 | . . 2 . . . . . . . 6 10 15 7 . . . . . . 5 2 1 13 . . . 6 . . 5 Energy Discharges 61 | . . . . . . . . . . 9 5 11 5 . . . . . . 1 2 2 15 . . . 4 . 2 5 Parts Rejected 5 | . . . . . . . . . . 1 . 2 . . . . . . . . . . . . . . . . . 2 Data Loss (minor) 55 | . . 1 . . . . . . . 12 . 8 5 . 2 . . . . 5 . . 7 . . . 4 . 1 10 Data Loss (major) 13 | . . . . . . . . . . . . 2 5 . . . . . . . . . 4 . . . 1 . . 1 Misfires 10 | . . . . . . . . . . 2 2 1 2 . . . . . . . 1 . 1 . . . 1 . . . Alerts 10 | . . . . . . . . . . 2 2 1 3 . . . . . . . . . 1 . . . . . . 1 Misdirections 53 | . . . . . . . . . . 10 13 17 7 . . . . . . . . . 4 . . . . . . 2 Targeting Errors 82 | . . 1 . . . . . . . 28 5 1 8 . 1 . . . . 3 3 5 . . . . 6 . 1 20 Weapon Failures 14 | . . . . . . . . . . 4 . 1 1 . . . . . . 2 . . 1 . . . 2 . 1 2 Overload Shots . | . . . . . . . . . . . . . . . . . . . . . . . . . . . . . . . Overflow Damage 1891 | . 6 64 15 6 . 5 . . . . 141 32 55 . 48 . 26 156 22 48 28 71 47 41 42 234 6 117 50 631 Projectiles 295 | . . 10 . . . . . . . . . . . . . . . . . 6 9 . . 41 . 48 3 . . 178 Explosions 746 | . 6 54 15 6 . 5 . . . . . . . . 7 . 26 . 22 42 19 . 16 . 42 14 3 . 50 419 Melee 850 | . . . . . . . . . . . 141 32 55 . 41 . . 156 . . . 71 31 . . 172 . 117 . 34 Knockbacks 1 | . . . . . . . . . . . 1 . . . . . . . . . . . . . . . . . . . Impact 1 | . . . . . . . . . . . 1 . . . . . . . . . . . . . . . . . . . Kinetic . | . . . . . . . . . . . . . . . . . . . . . . . . . . . . . . . Secondary . | . . . . . . . . . . . . . . . . . . . . . . . . . . . . . . . Self-Inflicted Damage 921 | . 40 126 . 23 . . 17 3 . . . . 34 . 79 . 86 . 70 . . . 32 . . 77 89 . 28 217 Shots 43 | . 2 6 . 1 . . 1 1 . . . . 1 . 3 . 3 . 3 . . . 1 . . 4 3 . 1 13 Rammed 11 | . 2 . 1 . . . . . . 6 . 1 . . . . . . . . . . . . . . . . . 1 Targets Rammed 11 | . 2 . 1 . . . . . . 6 . 1 . . . . . . . . . . . . . . . . . 1 Kicked . | . . . . . . . . . . . . . . . . . . . . . . . . . . . . . . . Crushed . | . . . . . . . . . . . . . . . . . . . . . . . . . . . . . . . Highest Temperature 425 | . 21 170 96 90 . 312 192 3 1 269 227 273 210 12 32 3 42 56 22 360 223 230 220 24 42 48 223 . . 425 Average Temperature 62 | . 5 46 24 31 . 117 36 2 1 95 74 92 51 6 16 3 12 15 11 96 76 86 69 13 12 16 99 . . 132 Received Heat Transfer 5276 | . 336 90 990 90 . 108 882 27 99 297 . 135 99 90 66 . 150 12 141 257 84 45 65 39 99 125 103 12 93 742 Effects 8 | . . . . . . . . . . 2 . 1 . . . . . . . 1 1 . . . . . . . . 3 Shutdowns 1 | . . . . . . . . . . . . . . . . . . . . . . . . . . . . . . 1 Energy Bleed 4 | . . . . . . . . . . 1 . 1 . . . . . . . 1 1 . . . . . . . . . Interference 2 | . . . . . . . . . . 1 . . . . . . . . . . . . . . . . . . . 1 Short Circuit 1 | . . . . . . . . . . . . . . . . . . . . . . . . . . . . . . 1 Siege Activations 72 | . . . . . . . . . . . . 1 4 . . . . 1 9 6 5 . 6 1 9 5 5 . 8 12 Total Turns 989 | . . . . . . . . . . . . 14 62 . . . . 8 113 120 106 . 97 14 62 61 84 . 82 166 Longest Duration 72 | . . . . . . . . . . . . 14 31 . . . . 8 27 72 33 . 34 14 21 18 31 . 23 43 Robots Corrupted 156 | . . . . . . . . 1 . . 1 . 4 . 5 . 10 . 10 2 2 1 17 3 17 10 7 . 17 49 Combat Hostiles 135 | . . . . . . . . 1 . . 1 . 4 . 4 . 7 . 10 2 . 1 12 3 16 9 7 . 14 44 Parts Fried 341 | . . . . . . 1 4 . 1 . 1 3 11 . 4 . 20 . 11 3 3 1 26 3 43 24 20 . 33 129 Impact Corruptions 9 | . . . . . . . . . . . 6 2 1 . . . . . . . . . . . . . . . . . Robots Melted 2 | . . . . . . . . . . . . . . . . . . . . . . . . . . . . . . 2 Combat Hostiles 2 | . . . . . . . . . . . . . . . . . . . . . . . . . . . . . . 2 Parts Melted 29 | . . . . . . . . . . . . . . . . . . . . 3 . . . . . 6 1 . 1 18 Heat Transferred 7399 | . . 100 . 50 . 50 150 150 . . . . . . 50 . 336 . . 1223 481 . 296 . 150 629 198 . 324 3212 Parts Sabotaged 16 | . . . . . . . . . . . . . . . . . . . . . . . . . . . . . . 16 Parts Stolen . | . . . . . . . . . . . . . . . . . . . . . . . . . . . . . . . Parts Stripped . | . . . . . . . . . . . . . . . . . . . . . . . . . . . . . . . Power Chain Reactions 38 | . . 2 . 1 . 1 2 1 . . . . 1 . 1 . 2 . 3 . . . . . 4 1 2 . 4 13 Missiles Intercepted . | . . . . . . . . . . . . . . . . . . . . . . . . . . . . . . . Alert | -11 -10 -10 -9 -9 -9 -8 -8 -8 -8 -7 -7 -7 -7 -7 -7 -6 -6 -5 -5 -4 -4 -3 -3 -3 -3 -2 -2 -2 -2 -1 ------- Run | Scr Mat Min Mat Min Exi Min Mat Gar Mat Fac Was Fac Gar Fac Gar Fac Gar Fac Gar Fac Gar Res Gar Res Gar Res Gar Res Gar Acc Peak Influence 3325 | 10 412 404 1077 530 . 199 733 828 511 517 24 494 904 583 759 410 1162 820 1453 896 1345 805 873 546 1395 1005 1311 752 1455 3325 Initial 872 | . 6 119 145 420 . . . 476 403 153 24 . 287 474 333 398 195 609 193 762 464 756 90 490 260 784 753 737 551 872 Average 668 | 4 302 292 475 376 . 53 268 655 407 183 11 94 805 471 640 369 822 544 1080 504 1016 449 283 492 1012 760 1027 749 1137 1736 Maximum Alert Level 5 | . 2 2 3 2 . . 3 3 2 2 . 2 3 2 3 2 4 3 4 3 4 3 3 2 4 3 4 3 4 5 Low Security (%) 17 | 100 12 4 2 10 . 100 33 . . 68 100 80 . . . . . . 8 5 . 44 70 . . . . . . . Level 1 16 | . 65 93 49 44 . . 46 . 35 25 . . 8 19 5 55 6 19 . 52 . . 1 10 12 . . . . . Level 2 18 | . 21 1 25 44 . . 16 64 64 6 . 19 . 80 33 44 9 60 14 3 13 11 14 89 1 36 . . 12 . Level 3 29 | . . . 22 . . . 4 35 . . . . 90 . 60 . 72 19 13 38 44 43 12 . 32 63 50 100 22 24 Level 4 15 | . . . . . . . . . . . . . . . . . 10 . 63 . 41 . . . 54 . 49 . 65 34 Level 5 . | . . . . . . . . . . . . . . . . . . . . . . . . . . . . . . 16 High Security 1 | . . . . . . . . . . . . . . . . . . . . . . . . . . . . . . 24 Max Security . | . . . . . . . . . . . . . . . . . . . . . . . . . . . . . . . Squads Dispatched 129 | . 7 . 9 . . . 6 . . 5 . 3 . 8 . 5 . 3 . 13 . 9 . 1 . 12 . 2 . 46 Investigation 27 | . 6 . 4 . . . 2 . . 2 . . . . . 3 . . . 3 . 2 . . . 2 . 1 . 2 Extermination 20 | . . . . . . . . . . 2 . 2 . 2 . 1 . 2 . 4 . 1 . . . 3 . . . 3 Reinforcement 29 | . 1 . 4 . . . 4 . . 1 . 1 . 4 . . . . . 2 . 2 . 1 . 3 . . . 6 Assault 43 | . . . 1 . . . . . . . . . . 1 . 1 . 1 . . . . . . . 4 . . . 35 Garrison 10 | . . . . . . . . . . . . . . 1 . . . . . 4 . 4 . . . . . 1 . . Intercept . | . . . . . . . . . . . . . . . . . . . . . . . . . . . . . . . Construction Impeded 9 | . . . . . . . . . . . . . . . . . . . . 1 . . . . . 2 . . . 6 Haulers Reinforced 2 | . . . . . . . . . . . . . . . . . . . . . . 1 . . . 1 . . . . Alert ID Control Effect 53 | . . . . . . . . . . . . . . . . . 1 . . 3 14 19 6 . 1 4 2 . . 3 Stealth | -11 -10 -10 -9 -9 -9 -8 -8 -8 -8 -7 -7 -7 -7 -7 -7 -6 -6 -5 -5 -4 -4 -3 -3 -3 -3 -2 -2 -2 -2 -1 --------- Run | Scr Mat Min Mat Min Exi Min Mat Gar Mat Fac Was Fac Gar Fac Gar Fac Gar Fac Gar Fac Gar Res Gar Res Gar Res Gar Res Gar Acc Distress Signals 27 | . 2 . 6 . . . 7 . 1 . . . . 1 . . . . . . 2 . . 2 . 2 . . . 4 Communications Jammed 221 | . . . . . . . . . . . . . . . . . . 4 . . . . . . . 13 . . . 204 Distress Signals 221 | . . . . . . . . . . . . . . . . . . 4 . . . . . . . 13 . . . 204 Times Spotted 812 | . 35 15 82 5 . 4 64 11 12 9 . 11 28 21 11 4 24 9 24 29 31 20 35 7 20 39 15 6 16 225 Peak Tracking Total 30 | . 4 3 7 5 . 3 6 4 3 4 . 3 6 4 4 4 6 2 8 4 6 4 7 3 8 7 6 5 5 30 Tactical Retreats 64 | . 3 . 6 . . 1 6 . 2 . . . 4 . 1 1 1 . 4 . 4 . 2 1 4 2 1 . 6 15 Traps | -11 -10 -10 -9 -9 -9 -8 -8 -8 -8 -7 -7 -7 -7 -7 -7 -6 -6 -5 -5 -4 -4 -3 -3 -3 -3 -2 -2 -2 -2 -1 ------- Run | Scr Mat Min Mat Min Exi Min Mat Gar Mat Fac Was Fac Gar Fac Gar Fac Gar Fac Gar Fac Gar Res Gar Res Gar Res Gar Res Gar Acc Traps Triggered 119 | . 3 . . . . . 1 3 . 3 . 2 14 1 9 . 12 . 10 . 7 . 12 . 15 . 6 1 14 6 Indirectly 46 | . . . . . . . . . . . . . 2 . 1 . 3 . 6 . 2 . 5 . 5 . 5 . 11 6 Trap Hack Attempts . | . . . . . . . . . . . . . . . . . . . . . . . . . . . . . . . Triggered . | . . . . . . . . . . . . . . . . . . . . . . . . . . . . . . . Disarmed . | . . . . . . . . . . . . . . . . . . . . . . . . . . . . . . . Reprogrammed . | . . . . . . . . . . . . . . . . . . . . . . . . . . . . . . . Reused . | . . . . . . . . . . . . . . . . . . . . . . . . . . . . . . . Traps Extracted . | . . . . . . . . . . . . . . . . . . . . . . . . . . . . . . . Installed . | . . . . . . . . . . . . . . . . . . . . . . . . . . . . . . . Triggered 3 | . . . . . . . . . . . . . . . . . . . . . . . 1 . 1 . . . . 1 Exploded 1 | . . . . . 1 . . . . . . . . . . . . . . . . . . . . . . . . . Machines | -11 -10 -10 -9 -9 -9 -8 -8 -8 -8 -7 -7 -7 -7 -7 -7 -6 -6 -5 -5 -4 -4 -3 -3 -3 -3 -2 -2 -2 -2 -1 ---------- Run | Scr Mat Min Mat Min Exi Min Mat Gar Mat Fac Was Fac Gar Fac Gar Fac Gar Fac Gar Fac Gar Res Gar Res Gar Res Gar Res Gar Acc Machines Disabled 90 | . . 6 . . . 7 1 1 1 . . . 7 . 5 . 8 . 8 7 6 1 8 . 7 1 6 . 7 3 Max in Single Turn 3 | . . 3 . . . 2 1 1 1 . . . 1 . 1 . 2 . 1 2 2 1 2 . 1 1 1 . 1 1 Garrison Relay 32 | . . . . . . . . 1 . . . . 4 . 2 . 4 . 5 . 3 . 4 . 4 . 3 . 2 . Machines Sabotaged . | . . . . . . . . . . . . . . . . . . . . . . . . . . . . . . . Garrisons Compromised . | . . . . . . . . . . . . . . . . . . . . . . . . . . . . . . . Overloaded Fab Kills . | . . . . . . . . . . . . . . . . . . . . . . . . . . . . . . . Fab Network Shutdowns 4 | . . . . . . . . . . 1 . 1 . . . . . 1 . 1 . . . . . . . . . . Hacking | -11 -10 -10 -9 -9 -9 -8 -8 -8 -8 -7 -7 -7 -7 -7 -7 -6 -6 -5 -5 -4 -4 -3 -3 -3 -3 -2 -2 -2 -2 -1 --------- Run | Scr Mat Min Mat Min Exi Min Mat Gar Mat Fac Was Fac Gar Fac Gar Fac Gar Fac Gar Fac Gar Res Gar Res Gar Res Gar Res Gar Acc Machines Accessed 104 | . 10 . 14 1 2 . 7 . 2 8 . 11 . 1 . 5 . 12 . 12 . 4 . 3 . 8 . 2 . 2 Terminals 56 | . 7 . 8 . . . 4 . 1 4 . 7 . . . 4 . 6 . 5 . 1 . 1 . 6 . 1 . 1 Fabricators 9 | . . . . . . . . . . 1 . 2 . . . . . 1 . 4 . 1 . . . . . . . . Repair Stations 11 | . 1 . 2 . . . . . . 2 . 1 . . . . . 2 . 2 . . . 1 . . . . . . Recycling Units 11 | . 2 . 2 . . . 2 . 1 1 . . . . . . . 1 . . . . . . . 1 . . . 1 Scanalyzers 4 | . . . 2 . . . . . . . . . . . . . . 1 . . . 1 . . . . . . . . Garrison Access 10 | . . . . . . . 1 . . . . 1 . 1 . 1 . 1 . 1 . 1 . 1 . 1 . 1 . . Total Hacks 332 | . 32 . 51 1 2 . 24 . 9 21 . 37 . 1 . 17 . 51 . 41 . 11 . 5 . 21 . 4 . 4 Successful 201 | . 19 . 36 1 2 . 13 . 4 13 . 23 . 1 . 9 . 37 . 25 . 3 . 1 . 12 . 2 . . Failed 130 | . 13 . 15 . . . 11 . 5 8 . 14 . . . 8 . 13 . 16 . 8 . 4 . 9 . 2 . 4 Catastrophic 17 | . 1 . . . . . 1 . . 2 . . . . . 2 . 1 . 3 . 2 . 1 . 2 . . . 2 Database Lockouts 1 | . . . . . . . . . . . . . . . . . . 1 . . . . . . . . . . . . Manual 182 | . 21 . 25 . 1 . 13 . 8 10 . 21 . . . 13 . 30 . 16 . 5 . 2 . 14 . 3 . . Terminals 202 | . 22 . 29 . . . 15 . 5 13 . 26 . . . 16 . 31 . 17 . 5 . 2 . 16 . 3 . 2 Fabricators 35 | . . . . . . . . . . 3 . 6 . . . . . 7 . 17 . 2 . . . . . . . . Repair Stations 29 | . 2 . 6 . . . . . . 4 . 4 . . . . . 6 . 5 . . . 2 . . . . . . Recycling Units 38 | . 8 . 10 . . . 5 . 4 1 . . . . . . . 4 . . . . . . . 4 . . . 2 Scanalyzers 11 | . . . 6 . . . . . . . . . . . . . . 2 . . . 3 . . . . . . . . Garrison Access 14 | . . . . . . . 4 . . . . 1 . 1 . 1 . 1 . 2 . 1 . 1 . 1 . 1 . . Terminal Hacks 66 | . 7 . 12 1 2 . 6 . . 3 . 7 . . . 4 . 15 . 3 . . . . . 5 . 1 . . Record 3 | . . . . . 1 . . . . . . . . . . . . . . . . . . . . 2 . . . . Part Schematic 7 | . 2 . 1 . . . 1 . . 1 . 1 . . . . . 1 . . . . . . . . . . . . Robot Analysis 8 | . 2 . 3 . . . . . . . . 2 . . . . . 1 . . . . . . . . . . . . Prototype ID Bank 9 | . 2 . 4 . . . 2 . . . . . . . . . . 1 . . . . . . . . . . . . Open Door 1 | . . . . 1 . . . . . . . . . . . . . . . . . . . . . . . . . . Level Access Points 2 | . . . 1 . . . . . . . . . . . . . . 1 . . . . . . . . . . . . Branch Access Points 3 | . 1 . 1 . . . . . . . . . . . . . . 1 . . . . . . . . . . . . Terminal Index 10 | . . . 1 . . . 1 . . 1 . 1 . . . 1 . 1 . 1 . . . . . 2 . 1 . . Fabricator Index 4 | . . . . . . . . . . . . 1 . . . 1 . 1 . 1 . . . . . . . . . . Scanalyzer Index 1 | . . . . . . . . . . . . . . . . . . 1 . . . . . . . . . . . . Garrison Index 2 | . . . . . . . . . . . . . . . . 1 . . . . . . . . . 1 . . . . Unreport Threat 1 | . . . . . . . . . . . . . . . . . . 1 . . . . . . . . . . . . Locate Traps 4 | . . . 1 . . . 1 . . . . . . . . . . 2 . . . . . . . . . . . . Maintenance Status 1 | . . . . . . . . . . . . 1 . . . . . . . . . . . . . . . . . . Recall Extermination 3 | . . . . . . . . . . . . 1 . . . 1 . 1 . . . . . . . . . . . . Recall Reinforcements 1 | . . . . . . . . . . . . . . . . . . . . 1 . . . . . . . . . . Recall Assault 1 | . . . . . . . . . . . . . . . . . . 1 . . . . . . . . . . . . Zone Layout 4 | . . . . . . . 1 . . 1 . . . . . . . 2 . . . . . . . . . . . . EX-Prototype ID Bank 1 | . . . . . 1 . . . . . . . . . . . . . . . . . . . . . . . . . Fabricator Hacks 22 | . . . . . . . . . . 3 . 5 . . . . . 4 . 10 . . . . . . . . . . Load Schematic 9 | . . . . . . . . . . 1 . 2 . . . . . 2 . 4 . . . . . . . . . . Build 13 | . . . . . . . . . . 2 . 3 . . . . . 2 . 6 . . . . . . . . . . Repair Station Hacks 24 | . 2 . 6 . . . . . . 3 . 3 . . . . . 6 . 4 . . . . . . . . . . Scan Component 13 | . 1 . 3 . . . . . . 2 . 2 . . . . . 3 . 2 . . . . . . . . . . Repair 11 | . 1 . 3 . . . . . . 1 . 1 . . . . . 3 . 2 . . . . . . . . . . Recycling Unit Hacks 9 | . 1 . 2 . . . 2 . 1 1 . . . . . . . 1 . . . . . . . 1 . . . . Retrieve Components 9 | . 1 . 2 . . . 2 . 1 1 . . . . . . . 1 . . . . . . . 1 . . . . Scanalyzer 8 | . . . 5 . . . . . . . . . . . . . . 2 . . . 1 . . . . . . . . Insert Component 4 | . . . 2 . . . . . . . . . . . . . . 1 . . . 1 . . . . . . . . Analyze 4 | . . . 3 . . . . . . . . . . . . . . 1 . . . . . . . . . . . . Garrison Access Hacks 10 | . . . . . . . 1 . . . . 1 . 1 . 1 . 1 . 1 . 1 . 1 . 1 . 1 . . Unlock Access 10 | . . . . . . . 1 . . . . 1 . 1 . 1 . 1 . 1 . 1 . 1 . 1 . 1 . . Unauthorized Hacks 62 | . 9 . 11 . . . 4 . 3 3 . 7 . . . 4 . 8 . 7 . 1 . . . 5 . . . . Terminals 41 | . 5 . 7 . . . 2 . 1 3 . 6 . . . 4 . 5 . 2 . 1 . . . 5 . . . . Assimilate 6 | . . . 1 . . . . . . . . 3 . . . . . 1 . . . . . . . 1 . . . . Botnet 27 | . 4 . 5 . . . 2 . 1 2 . 2 . . . 3 . 3 . 1 . 1 . . . 3 . . . . Disrupt 1 | . . . . . . . . . . 1 . . . . . . . . . . . . . . . . . . . . Operators 7 | . 1 . 1 . . . . . . . . 1 . . . 1 . 1 . 1 . . . . . 1 . . . . Fabricators 7 | . . . . . . . . . . . . 1 . . . . . 2 . 4 . . . . . . . . . . Report 4 | . . . . . . . . . . . . 1 . . . . . 1 . 2 . . . . . . . . . . Siphon 3 | . . . . . . . . . . . . . . . . . . 1 . 2 . . . . . . . . . . Repair Stations . | . . . . . . . . . . . . . . . . . . . . . . . . . . . . . . . Recycling Units 13 | . 4 . 4 . . . 2 . 2 . . . . . . . . 1 . . . . . . . . . . . . Reject 2 | . 1 . 1 . . . . . . . . . . . . . . . . . . . . . . . . . . . Recyclers 4 | . 1 . 1 . . . . . 1 . . . . . . . . 1 . . . . . . . . . . . . Mask 4 | . 1 . 1 . . . 1 . 1 . . . . . . . . . . . . . . . . . . . . . Tunnel 3 | . 1 . 1 . . . 1 . . . . . . . . . . . . . . . . . . . . . . . Scanalyzers . | . . . . . . . . . . . . . . . . . . . . . . . . . . . . . . . Garrison Access 1 | . . . . . . . . . . . . . . . . . . . . 1 . . . . . . . . . . Reprogram 1 | . . . . . . . . . . . . . . . . . . . . 1 . . . . . . . . . . Data Cores Recovered 2 | . . . . . . . . . . . . 1 . . . . . 1 . . . . . . . . . . . . Used 1 | . . . . . . . . . . . . . . . . . . 1 . . . . . . . . . . . . Hacking Detections 81 | . 8 . 11 . . . 6 . 2 5 . 9 . 1 . 4 . 8 . 10 . 3 . 3 . 7 . 2 . 2 Full Trace Events 25 | . 5 . 5 . . . 1 . . 2 . . . . . 3 . . . 3 . 2 . . . 2 . . . 2 Feedback Events 6 | . . . . . . . . . . 1 . . . . . 1 . . . 1 . 2 . . . . . . . 1 Corruption 2 | . . . . . . . . . . 1 . . . . . . . . . . . 1 . . . . . . . . Hackware Fried 4 | . . . . . . . . . . . . . . . . 1 . . . 1 . 1 . . . . . . . 1 Feedback Blocked . | . . . . . . . . . . . . . . . . . . . . . . . . . . . . . . . Robot Schematics Acquired . | . . . . . . . . . . . . . . . . . . . . . . . . . . . . . . . Robots Built . | . . . . . . . . . . . . . . . . . . . . . . . . . . . . . . . Matter . | . . . . . . . . . . . . . . . . . . . . . . . . . . . . . . . Time . | . . . . . . . . . . . . . . . . . . . . . . . . . . . . . . . Total Robot Build Rating . | . . . . . . . . . . . . . . . . . . . . . . . . . . . . . . . Part Schematics Acquired 10 | . 2 . 3 . . . 1 . . 1 . 1 . . . . . 2 . . . . . . . . . . . . Parts Built 9 | . . . . . . . . . . 1 . 3 . . . . . 2 . 3 . . . . . . . . . . Matter 2288 | . . . . . . . . . . 146 . 508 . . . . . 424 . 1210 . . . . . . . . . . Time 899 | . . . . . . . . . . 73 . 264 . . . . . 106 . 456 . . . . . . . . . . Total Part Build Rating 51 | . . . . . . . . . . 3 . 16 . . . . . 12 . 20 . . . . . . . . . . Parts Repaired 11 | . 1 . 3 . . . . . . 1 . 1 . . . . . 3 . 2 . . . . . . . . . . Time 486 | . 26 . 90 . . . . . . 44 . 43 . . . . . 211 . 72 . . . . . . . . . . Parts Recycled . | . . . . . . . . . . . . . . . . . . . . . . . . . . . . . . . Recycled Matter . | . . . . . . . . . . . . . . . . . . . . . . . . . . . . . . . Retrieved Matter . | . . . . . . . . . . . . . . . . . . . . . . . . . . . . . . . Retrieved Components 43 | . 9 . 19 . . . 11 . . 1 . . . . . . . 2 . . . . . . . 1 . . . . Parts Scanalyzed 4 | . . . 2 . . . . . . . . . . . . . . 1 . . . 1 . . . . . . . . Part Schematics Acquired 3 | . . . 2 . . . . . . . . . . . . . . 1 . . . . . . . . . . . . Parts Damaged . | . . . . . . . . . . . . . . . . . . . . . . . . . . . . . . . Bothacking | -11 -10 -10 -9 -9 -9 -8 -8 -8 -8 -7 -7 -7 -7 -7 -7 -6 -6 -5 -5 -4 -4 -3 -3 -3 -3 -2 -2 -2 -2 -1 ------------ Run | Scr Mat Min Mat Min Exi Min Mat Gar Mat Fac Was Fac Gar Fac Gar Fac Gar Fac Gar Fac Gar Res Gar Res Gar Res Gar Res Gar Acc Used RIF Installer 10 | . . . . . . . . 1 . . . . 1 . 1 . 1 . 1 . 1 . 1 . 1 . 1 . 1 . Hotswap 1 | . . . . . . . . . . . . . . . . . . . . . . . 1 . . . . . . . Signal Jammer 1 | . . . . . . . . . . . . . . . . . . . . . . . . . . . . . 1 . Zone Cloak 1 | . . . . . . . . . . . . . 1 . . . . . . . . . . . . . . . . . Robot Detection 1 | . . . . . . . . . . . . . . . . . . . . . . . . . . . 1 . . . Alert ID Control 1 | . . . . . . . . . . . . . . . . . 1 . . . . . . . . . . . . . Autooverride 2 | . . . . . . . . . . . . . . . 1 . . . . . 1 . . . . . . . . . Autoassimilate 1 | . . . . . . . . . . . . . . . . . . . 1 . . . . . . . . . . . Crosswire 1 | . . . . . . . . . . . . . . . . . . . . . . . . . 1 . . . . . Robots Hacked 108 | . . . . . 4 . . . 2 3 . . 12 3 . 1 5 1 2 1 4 13 8 1 5 6 3 1 2 31 Non-combat 11 | . . . . . 3 . . . . 3 . . . . . . . 1 . 1 . 2 . . . . . . . 1 Combat 97 | . . . . . 1 . . . 2 . . . 12 3 . 1 5 . 2 . 4 11 8 1 5 6 3 1 2 30 Autooverrided 38 | . . . . . . . . . . . . . . . . 1 . . . . . 5 3 . 2 5 2 1 1 18 Autoassimilated 25 | . . . . . . . . . . . . . . . . . . . . . 2 5 4 1 3 1 1 . 1 7 Robot Hacks Applied 58 | . . . . . 4 . . . 2 4 . . 13 3 . . 5 3 2 6 2 5 1 . 1 . . . . 7 parse_system 7 | . . . . . 4 . . . . . . . . . . . . 1 . . . . . . . . . . . 2 no_distress 1 | . . . . . . . . . . 1 . . . . . . . . . . . . . . . . . . . . find_chute 1 | . . . . . . . . . . 1 . . . . . . . . . . . . . . . . . . . . find_fabricator 1 | . . . . . . . . . . . . . . . . . . . . . . 1 . . . . . . . . purge_threat 10 | . . . . . . . . . . 1 . . . . . . . 2 . 5 . 2 . . . . . . . . locate_traps 1 | . . . . . . . . . . 1 . . . . . . . . . . . . . . . . . . . . go_dormant 1 | . . . . . . . . . . . . . 1 . . . . . . . . . . . . . . . . . overwrite_iff 4 | . . . . . . . . . . . . . 2 . . . 1 . . . . . . . . . . . . 1 streamctrl_high 2 | . . . . . . . . . . . . . 1 . . . . . . . . 1 . . . . . . . . formatsys_low 3 | . . . . . . . . . . . . . . . . . . . . 1 . 1 . . . . . . . 1 formatsys_high 27 | . . . . . . . . . 2 . . . 9 3 . . 4 . 2 . 2 . 1 . 1 . . . . 3 Relay Couplers Released 128 | . . . . . . . . 4 . . . . 16 . 9 . 17 . 19 . 12 . 17 . 17 . 11 . 6 . Machine Destruction 128 | . . . . . . . . 4 . . . . 16 . 9 . 17 . 19 . 12 . 17 . 17 . 11 . 6 . Attached 31 | . . . . . . . . . 1 1 . . 6 1 . . 1 2 2 2 3 3 3 . 1 1 . . 1 3 Crosswired 16 | . . . . . . . . . . . . . . . . . . . . . . . . . 7 . 8 . 1 . Robots Rewired 21 | . . . . . . . . . . . . . 6 . 1 . . . 6 . 7 . . . . . . . . 1 Allies Hacked 2 | . . . . . . . . . . . . . . . . . . . . . . . . . . 1 1 . . . Hacks Repelled . | . . . . . . . . . . . . . . . . . . . . . . . . . . . . . . . Allies | -11 -10 -10 -9 -9 -9 -8 -8 -8 -8 -7 -7 -7 -7 -7 -7 -6 -6 -5 -5 -4 -4 -3 -3 -3 -3 -2 -2 -2 -2 -1 -------- Run | Scr Mat Min Mat Min Exi Min Mat Gar Mat Fac Was Fac Gar Fac Gar Fac Gar Fac Gar Fac Gar Res Gar Res Gar Res Gar Res Gar Acc Total Allies 126 | . . . 1 . . . . . 2 3 . 1 17 3 1 1 5 1 8 3 11 12 8 1 5 7 3 1 2 30 Largest Group 10 | . . . 1 . . . . . 2 3 . 1 8 6 . 1 2 1 7 3 10 10 2 1 3 3 2 1 1 4 Highest-Rated Group 524 | . . . 10 . . . . . 32 93 . 26 144 124 . 12 32 26 222 124 523 524 111 64 158 141 99 69 58 217 Highest-Rated Ally 69 | . . . 10 . . . . . 16 31 . 26 32 32 . 12 32 26 49 49 56 64 64 64 64 64 69 69 58 69 Total Orders 41 | . . . 2 . . . . . . . . . 7 2 . 1 2 . 7 3 8 . 1 . 2 1 4 . . 1 STAY 17 | . . . 1 . . . . . . . . . 3 1 . . 1 . 4 . 3 . . . 1 . 3 . . . ROAM 1 | . . . . . . . . . . . . . . . . . . . . . . . 1 . . . . . . . FOLLOW 17 | . . . 1 . . . . . . . . . 4 1 . . 1 . 3 . 5 . . . 1 . 1 . . . AID 1 | . . . . . . . . . . . . . . . . . . . . . . . . . . . . . . 1 EXPLORE 4 | . . . . . . . . . . . . . . . . 1 . . . 2 . . . . . 1 . . . . RETURN 1 | . . . . . . . . . . . . . . . . . . . . 1 . . . . . . . . . . Ally Attacks 578 | . . . . . . . . . 7 28 . . 51 47 . 6 24 . 29 20 75 109 43 7 4 29 10 6 3 80 Total Damage 16135 | . . . . . . . . . 111 508 . . 1268 1003 . 45 778 . 958 610 2466 3476 788 192 118 942 382 260 91 2139 Kills 102 | . . . . . . . . . . 3 . . 6 12 . 1 5 . 13 4 21 21 6 . 1 4 2 . . 3 Allies Corrupted 10 | . . . . . . . . . . . . . . . . . . . . 1 . . 2 . 1 2 . . . 4 Allies Melted 1 | . . . . . . . . . . . . . . . . . . . . . . . . 1 . . . . . . Intel | -11 -10 -10 -9 -9 -9 -8 -8 -8 -8 -7 -7 -7 -7 -7 -7 -6 -6 -5 -5 -4 -4 -3 -3 -3 -3 -2 -2 -2 -2 -1 ------- Run | Scr Mat Min Mat Min Exi Min Mat Gar Mat Fac Was Fac Gar Fac Gar Fac Gar Fac Gar Fac Gar Res Gar Res Gar Res Gar Res Gar Acc Robot Analysis Total 8 | . 2 . 3 . . . . . . . . 2 . . . . . 1 . . . . . . . . . . . . Derelict Logs Recovered 3 | . . 2 . 1 . . . . . . . . . . . . . . . . . . . . . . . . . . Drone Launches 4 | . . . . . . . . . . . . . . . . 1 . . . 2 . . . . . 1 . . . . Drone Recoveries 2 | . . . . . . . . . . . . . . . . . . . . 2 . . . . . . . . . . Exploration | -11 -10 -10 -9 -9 -9 -8 -8 -8 -8 -7 -7 -7 -7 -7 -7 -6 -6 -5 -5 -4 -4 -3 -3 -3 -3 -2 -2 -2 -2 -1 ------------- Run | Scr Mat Min Mat Min Exi Min Mat Gar Mat Fac Was Fac Gar Fac Gar Fac Gar Fac Gar Fac Gar Res Gar Res Gar Res Gar Res Gar Acc Turns Passed 48741 | 59 1295 683 3531 892 569 437 2308 877 622 1553 836 1740 3102 1229 1131 503 2789 1711 3573 2051 2199 745 4030 445 1658 1559 2476 263 1212 2663 Spaces Moved 21619 | 34 904 488 1525 493 415 286 1012 409 248 595 430 882 1043 582 614 322 1303 726 1765 886 1013 360 889 218 800 690 935 139 505 1108 Core 682 | 34 424 1 . . . . . . . . . . 43 . . . . . . . . . 87 . 1 . 17 . . 75 Treads 17634 | . 480 173 1310 339 . . 134 409 248 595 430 882 1000 582 126 . 1077 726 1765 886 1013 360 802 218 799 690 918 139 505 1028 Legs 137 | . . . 132 . . . . . . . . . . . . . . . . . . . . . . . . . . 5 Wheels 3162 | . . 310 83 154 415 286 878 . . . . . . . 488 322 226 . . . . . . . . . . . . . Hover . | . . . . . . . . . . . . . . . . . . . . . . . . . . . . . . . Flight 4 | . . 4 . . . . . . . . . . . . . . . . . . . . . . . . . . . . Fastest Speed 50 | 50 50 90 90 120 110 140 130 197 197 197 180 180 180 192 130 130 130 180 180 160 180 175 172 172 172 152 172 185 185 50 Average Speed 188 | 50 108 118 172 162 130 140 146 197 197 201 181 180 265 192 153 138 189 196 183 174 180 179 420 172 175 172 229 185 185 169 Slowest Speed 3000 | 50 160 600 200 220 140 140 197 197 197 270 200 180 2100 192 280 140 240 200 200 200 180 220 2700 172 3000 180 2950 185 200 210 Overloaded Moves . | . . . . . . . . . . . . . . . . . . . . . . . . . . . . . . . Propulsion Burnouts . | . . . . . . . . . . . . . . . . . . . . . . . . . . . . . . . Robots Hopped . | . . . . . . . . . . . . . . . . . . . . . . . . . . . . . . . Cave-ins Triggered 1 | . . . . . . . . . . . . . . . . . . . . . . 1 . . . . . . . . Exploration Rate (%) 54 | 4 98 98 94 95 70 70 71 51 24 14 95 17 90 20 70 18 93 20 87 20 82 9 84 13 88 22 85 5 64 30 Regions Visited 30 Branch Regions 4 Pre-discovered Areas 4 | . 1 . 1 . 1 . 1 . . . . . . . . . . . . . . . . . . . . . . . Known Exits Taken 14 | . 1 1 1 . . 1 1 . . . . 1 . 1 . 1 . 1 . 1 . 1 . 1 . 1 . 1 . . Unknown Exits Taken 4 | 1 . . . 1 1 . . . 1 . . . . . . . . . . . . . . . . . . . . . Scrap Searched 4 | . . 1 . 1 . 2 . . . . . . . . . . . . . . . . . . . . . . . . Spaces Dug 237 | . . 8 11 . . . 27 . 1 8 . 13 1 9 8 8 18 26 5 21 2 2 . 6 2 28 3 . 15 15 Terrain Destroyed 763 | . 22 84 52 13 . 30 56 7 1 8 . 13 3 9 8 8 79 26 6 44 57 32 . 6 19 32 10 . 41 97 Melee 126 | . . . . . . . 3 . 1 8 . 13 1 9 . 8 2 26 1 11 . 2 . 6 2 23 3 . . 7 Projectile 108 | . . . 16 . . . 37 . . . . . . . . . . . . 17 4 . . . . 7 2 . 2 23 AOE 529 | . 22 84 36 13 . 30 16 7 . . . . 2 . 8 . 77 . 5 16 53 30 . . 17 2 5 . 39 67 Terrain Rammed . | . . . . . . . . . . . . . . . . . . . . . . . . . . . . . . . Walls Destroyed . | . . . . . . . . . . . . . . . . . . . . . . . . . . . . . . . Machines Disabled . | . . . . . . . . . . . . . . . . . . . . . . . . . . . . . . . Actions | -11 -10 -10 -9 -9 -9 -8 -8 -8 -8 -7 -7 -7 -7 -7 -7 -6 -6 -5 -5 -4 -4 -3 -3 -3 -3 -2 -2 -2 -2 -1 --------- Run | Scr Mat Min Mat Min Exi Min Mat Gar Mat Fac Was Fac Gar Fac Gar Fac Gar Fac Gar Fac Gar Res Gar Res Gar Res Gar Res Gar Acc Total 27319 | 55 1083 547 2022 543 440 306 1424 451 341 856 484 997 1292 641 762 354 1533 942 2019 1270 1319 439 1115 269 1036 952 1230 143 778 1676 Wait 2021 | . 43 1 139 6 . 2 129 . 58 151 . 75 85 10 18 10 28 129 77 186 166 10 70 18 87 96 166 . 122 139 Move 21598 | 33 903 487 1524 492 414 285 1012 408 247 595 429 881 1042 582 613 322 1302 726 1764 886 1012 359 888 218 799 690 934 139 504 1108 Hop . | . . . . . . . . . . . . . . . . . . . . . . . . . . . . . . . Pick Up 299 | 5 15 3 26 7 12 3 20 3 1 10 9 5 13 . 8 2 14 8 20 18 11 11 16 3 8 15 14 1 8 10 Fast Attach 160 | 5 6 6 13 2 1 . 8 . . 7 5 3 2 2 2 . 10 5 5 5 1 8 6 . 5 12 8 . 5 28 Attach 142 | . 4 1 7 1 1 1 10 2 1 12 2 3 8 1 . 2 4 3 6 16 1 8 3 . 3 8 8 . . 26 Detach 77 | . 3 . 3 . 1 . 1 1 . 3 4 2 5 1 1 . 3 5 1 11 . 4 3 . 3 5 8 . 2 7 Swap 376 | . 10 14 45 4 1 4 27 3 7 16 2 2 11 6 6 2 19 11 19 29 17 4 17 8 11 14 8 1 7 51 Drop 354 | 1 14 9 42 7 6 . 21 3 1 2 21 2 8 3 8 . 22 9 23 15 13 7 23 6 13 18 19 1 15 22 Fire 1717 | 11 83 25 222 24 . 11 193 25 21 45 9 7 61 21 28 2 65 10 79 90 74 17 63 9 77 63 50 . 93 239 Melee 298 | . . 1 . . 4 . 3 . 3 9 3 16 22 13 11 14 18 36 10 14 5 11 11 7 6 31 13 1 3 33 Ram . | . . . . . . . . . . . . . . . . . . . . . . . . . . . . . . . Kick . | . . . . . . . . . . . . . . . . . . . . . . . . . . . . . . . Crush 11 | . 2 . 1 . . . . . . 6 . 1 . . . . . . . . . . . . . . . . . 1 Escape Stasis 252 | . . . . . . . . 6 . . . . 32 2 67 . 48 . 15 . 10 . 15 . 24 . 2 . 19 12 Rewire 14 | . . . . . . . . . 2 . . . 3 . . . . . . . 9 . . . . . . . . . Trap . | . . . . . . . . . . . . . . . . . . . . . . . . . . . . . . . Miscellaneous . | . . . . . . . . . . . . . . . . . . . . . . . . . . . . . . . Route ------- -11/Scrapyard -10/Materials (discovered 4 exits: *Mat x3 / *Min) -10/Mines (discovered 2 exits: *Mat x2) -9/Materials (discovered 6 exits: *Mat x3 / *Min / *Sto x2) -9/Mines (discovered 3 exits: *Mat / *Exi / [*Zio]) -9/Exiles -8/Mines -8/Materials (discovered 2 exits: *Fac / Gar) -8/Garrison (discovered 2 exits: *Mat x2) -8/Materials -7/Factory (discovered 2 exits: Fac x2) -7/Waste -7/Factory (discovered 3 exits: *Fac / [*Low] / Gar) -7/Garrison (discovered 3 exits: *Fac x3) -7/Factory -7/Garrison (discovered 3 exits: *Fac x3) -6/Factory (discovered 3 exits: [*Low] / [*Ext] / Gar) -6/Garrison (discovered 3 exits: *Fac x3) -5/Factory (discovered 7 exits: Fac x4 / Upp x2 / Gar) -5/Garrison (discovered 2 exits: *Fac x2) -4/Factory (discovered 2 exits: [*Upp] / Gar) -4/Garrison (discovered 3 exits: *Res x3) -3/Research -3/Garrison (discovered 3 exits: *Res x3) -3/Research -3/Garrison (discovered 2 exits: *Res x2) -2/Research -2/Garrison (discovered 3 exits: *Res x3) -2/Research -2/Garrison (discovered 3 exits: *Acc x3) -1/Access History --------- Turn | Location | Event 6 | -11/Scrapyard | Discovered new exit (range 15) 60 | -11/Scrapyard | Entered Materials 182 | -10/Materials | Discovered new exit (range 12) 197 | -10/Materials | Discovered new exit (range 16) 324 | -10/Materials | Build established: Mutant 344 | -10/Materials | Discovered new exit (range 7) 449 | -10/Materials | Identified exit to Materials 566 | -10/Materials | Discovered exit to Materials (range 5) 611 | -10/Materials | Repaired Lgt. Assault Rifle 792 | -10/Materials | Identified exit to Mines 978 | -10/Materials | Core integrity fell below 50% 1355 | -10/Materials | Entered Mines 1431 | -10/Mines | Learned Materials non-interactive machine intel 1453 | -10/Mines | Core integrity fell below 20% 1490 | -10/Mines | Found a damaged Exp. Sensor Array with a note attached 1529 | -10/Mines | Discovered exit to Materials (range 7) 1854 | -10/Mines | Received a Rocket Launcher from a helpful Derelict 2038 | -10/Mines | Entered Materials 2038 | -9/Materials | Evolved 2 slots: Utility x2 2039 | -9/Materials | Loaded intel: 50 non-interactive machine locations 2067 | -9/Materials | Build established: Scavenger-Mutant 2593 | -9/Materials | Discovered new exit (range 10) 2608 | -9/Materials | Identified exit to Materials 3000 | -9/Materials | Repaired Med. Armor Plating 3303 | -9/Materials | Discovered new exit (range 3) 3332 | -9/Materials | Identified exit to Storage 4118 | -9/Materials | Repaired Hvy. Assault Rifle 4296 | -9/Materials | Repaired Lgt. Treads 4317 | -9/Materials | Discovered exit to Storage (range 4) 4791 | -9/Materials | Core integrity fell below 50% 4847 | -9/Materials | Identified exit to Mines 5238 | -9/Materials | First assault squad dispatched 5372 | -9/Materials | Build established: Hauler-Mutant 5569 | -9/Materials | Entered Mines 5595 | -9/Mines | Found a hidden stash of uninstalled traps 5674 | -9/Mines | A Derelict revealed a hidden shortcut to a safe place 5804 | -9/Mines | Core integrity fell below 20% 5851 | -9/Mines | Learned Materials garrison access intel 6100 | -9/Mines | YI-UF0 nonchalantly dropped a Grenade Launcher on the ground 6145 | -9/Mines | Destroyed YI-UF0 6151 | -9/Mines | Found Prototype Storage 6152 | -9/Mines | Identified YI-UF0's Bottomless Matter Pit 6198 | -9/Mines | Found Prototype Launcher 6236 | -9/Mines | Discovered exit to Materials (range 11) 6242 | -9/Mines | A weapon hastily lodged in a ceiling crevice suddenly fell to the ground 6255 | -9/Mines | Met a Derelict who couldn't figure out how to use a Trap Extractor 6455 | -9/Mines | Deemed a non-threat by the Exiles lab entrance 6455 | -9/Mines | Discovered new exit (range 5) 6461 | -9/Mines | Entered Exiles 6490 | -9/Exiles | Met 8R-AWN 6515 | -9/Exiles | Met EX-HEX 6607 | -9/Exiles | Met EX-DEC 6648 | -9/Exiles | Learned location of Zion (-7) 6671 | -9/Exiles | Met EX-BIN 6852 | -9/Exiles | Aligned with FarCom system 6853 | -9/Exiles | Given EX-Vault access code 6883 | -9/Exiles | Opened EX-Vault 6892 | -9/Exiles | Found Superbattery 6937 | -9/Exiles | Warned to stay clear of 0b10 Research branches 6938 | -9/Exiles | Exiles lab attacked by MAIN.C 7017 | -9/Exiles | Discovered new exit (range 10) 7030 | -9/Exiles | Left Exiles lab with Superbattery 7030 | -9/Exiles | Entered Mines 7370 | -8/Mines | Identified YI-UF0's Doublenader 7396 | -8/Mines | Discovered exit to Materials (range 15) 7467 | -8/Mines | Entered Materials 7467 | -8/Materials | Evolved 2 slots: Utility x2 7468 | -8/Materials | Loaded intel: 1 garrison access location 8238 | -8/Materials | Destroyed 7 combat bots 8600 | -8/Materials | Discovered new exit (range 16) 9775 | -8/Materials | Identified exit to Garrison 9775 | -8/Materials | Entered Garrison 9842 | -8/Garrison | Triggered checkpoint 9921 | -8/Garrison | Triggered checkpoint 10018 | -8/Garrison | Discovered new exit (range 12) 10049 | -8/Garrison | Installed Relay Interface Framework 10240 | -8/Garrison | Garrison Relay disabled 10330 | -8/Garrison | Triggered checkpoint 10420 | -8/Garrison | Triggered checkpoint 10506 | -8/Garrison | Triggered checkpoint 10632 | -8/Garrison | Discovered new exit (range 11) 10652 | -8/Garrison | Entered Materials 11175 | -8/Materials | Discovered new exit (range 12) 11274 | -8/Materials | Entered Factory 11274 | -7/Factory | Evolved 2 slots: Utility x2 11404 | -7/Factory | System corruption reached 10% 11405 | -7/Factory | Fabricated System Shield? 11483 | -7/Factory | Lost 10 parts (1p2n5u2w) 11579 | -7/Factory | Local fabrication network quarantined 11831 | -7/Factory | Build established: Hacker-Mutant 11852 | -7/Factory | Allied Derelicts emerged from ambush trap array 12657 | -7/Factory | Discovered new exit (range 8) 12657 | -7/Factory | Discovered new exit (range 16) 12765 | -7/Factory | Repaired Med. Treads 12827 | -7/Factory | Sucked down chute 12827 | -7/Factory | Entered Waste 12827 | -7/Waste | The area was eerily silent 13071 | -7/Waste | Discovered new exit (range 16) 13291 | -7/Waste | Found Damper Plating 13596 | -7/Waste | Found Damper Plating 13634 | -7/Waste | Found Damper Plating 13663 | -7/Waste | Entered Factory 13831 | -7/Factory | Discovered new exit (range 4) 14832 | -7/Factory | Repaired Broken Adv. Medium Treads 14904 | -7/Factory | Fabricated Imp. System Backup Module (x2) 15060 | -7/Factory | Local fabrication network quarantined 15094 | -7/Factory | Discovered new exit (range 11) 15156 | -7/Factory | Fabricated Tesla Bomb Launcher? 15367 | -7/Factory | Identified exit to Garrison 15403 | -7/Factory | Entered Garrison 15448 | -7/Garrison | Triggered checkpoint 15522 | -7/Garrison | Garrison Relay disabled 15667 | -7/Garrison | Triggered checkpoint 15667 | -7/Garrison | Triggered checkpoint 15720 | -7/Garrison | Destroyed 13 combat bots 15800 | -7/Garrison | Discovered new exit (range 15) 15973 | -7/Garrison | Discovered new exit (range 15) 15977 | -7/Garrison | Triggered checkpoint 16025 | -7/Garrison | Expanded RIF knowledge: Zone Cloak 16098 | -7/Garrison | Garrison Relay disabled 17118 | -7/Garrison | Triggered checkpoint 17143 | -7/Garrison | Triggered checkpoint 17319 | -7/Garrison | Build established: Bothacker-Mutant 17435 | -7/Garrison | Garrison Relay disabled 17468 | -7/Garrison | Triggered checkpoint 17533 | -7/Garrison | Triggered checkpoint 17698 | -7/Garrison | Discovered new exit (range 14) 18008 | -7/Garrison | Build established: Hacker-Mutant 18022 | -7/Garrison | Triggered checkpoint 18432 | -7/Garrison | Garrison Relay disabled 18505 | -7/Garrison | Entered Factory 18505 | -7/Factory | Accompanied by 4 allies 19701 | -7/Factory | Garrison activated, responded to threat 19705 | -7/Factory | First assault squad dispatched 19734 | -7/Factory | Identified exit to Garrison 19734 | -7/Factory | Entered Garrison 19902 | -7/Garrison | Core integrity fell below 50% 20015 | -7/Garrison | Triggered checkpoint 20017 | -7/Garrison | Triggered checkpoint 20123 | -7/Garrison | Triggered checkpoint 20172 | -7/Garrison | Triggered checkpoint 20179 | -7/Garrison | Garrison Relay disabled 20215 | -7/Garrison | Discovered new exit (range 10) 20351 | -7/Garrison | Discovered new exit (range 8) 20370 | -7/Garrison | Expanded RIF knowledge: Autooverride 20498 | -7/Garrison | Discovered new exit (range 8) 20650 | -7/Garrison | Garrison Relay disabled 20865 | -7/Garrison | Entered Factory 20865 | -6/Factory | Evolved 2 slots: Utility x2 20965 | -6/Factory | Build established: Bothacker-Mutant 21145 | -6/Factory | Discovered new exit (range 9) 21215 | -6/Factory | First assault squad dispatched 21271 | -6/Factory | Discovered new exit (range 14) 21348 | -6/Factory | Hacking Suite fried by hacking feedback 21368 | -6/Factory | Identified exit to Garrison 21368 | -6/Factory | Entered Garrison 21512 | -6/Garrison | Triggered checkpoint 21581 | -6/Garrison | Garrison Relay disabled 21716 | -6/Garrison | Triggered checkpoint 21716 | -6/Garrison | Triggered checkpoint 21738 | -6/Garrison | Spotted B-75 Beast 21740 | -6/Garrison | Destroyed B-75 Beast 21822 | -6/Garrison | Triggered checkpoint 21968 | -6/Garrison | Triggered checkpoint 22106 | -6/Garrison | Discovered new exit (range 12) 22300 | -6/Garrison | Discovered new exit (range 14) 22342 | -6/Garrison | Expanded RIF knowledge: Alert ID Control 22480 | -6/Garrison | Triggered checkpoint 22551 | -6/Garrison | Garrison Relay disabled 23096 | -6/Garrison | Discovered new exit (range 9) 23625 | -6/Garrison | Triggered checkpoint 23662 | -6/Garrison | Garrison Relay disabled 23857 | -6/Garrison | Triggered checkpoint 24157 | -6/Garrison | Entered Factory 24157 | -5/Factory | Evolved 2 slots: Utility x2 24502 | -5/Factory | Repaired Broken Adv. Cooling System 24757 | -5/Factory | First assault squad dispatched 24807 | -5/Factory | Identified exit to Upper Caves 24807 | -5/Factory | Identified exit to Factory 25108 | -5/Factory | Fabricated Adv. System Shield (x1) 25162 | -5/Factory | Fabricated Adv. System Shield? 25258 | -5/Factory | Repaired Tesla Bomb Launcher? 25318 | -5/Factory | Repaired Remote Datajack 25345 | -5/Factory | Local fabrication network quarantined 25482 | -5/Factory | Central database locked down 25868 | -5/Factory | Identified exit to Garrison 25868 | -5/Factory | Entered Garrison 25868 | -5/Garrison | Accompanied by 1 ally 25918 | -5/Garrison | Triggered checkpoint 25990 | -5/Garrison | Build established: Hacker-Mutant 26172 | -5/Garrison | Triggered checkpoint 26172 | -5/Garrison | Triggered checkpoint 26194 | -5/Garrison | Destroyed B-75 Beast 26215 | -5/Garrison | Destroyed 10 combat bots 26657 | -5/Garrison | Triggered checkpoint 26684 | -5/Garrison | Triggered checkpoint 26718 | -5/Garrison | Triggered checkpoint 26726 | -5/Garrison | Triggered checkpoint 26849 | -5/Garrison | Discovered exit to Factory (range 14) 26852 | -5/Garrison | Triggered checkpoint 26890 | -5/Garrison | Expanded RIF knowledge: Autoassimilate 26983 | -5/Garrison | Garrison Relay disabled 27102 | -5/Garrison | Spotted B-75 Beast 27271 | -5/Garrison | Build established: Botlord-Mutant 27377 | -5/Garrison | Discovered exit to Factory (range 15) 27449 | -5/Garrison | Triggered checkpoint 27731 | -5/Garrison | Spotted B-75 Beast 27866 | -5/Garrison | Triggered checkpoint 27933 | -5/Garrison | Garrison Relay disabled 28176 | -5/Garrison | Triggered checkpoint 28456 | -5/Garrison | Garrison Relay disabled 28753 | -5/Garrison | Build established: Bothacker-Mutant 28948 | -5/Garrison | Destroyed B-75 Beast 29004 | -5/Garrison | Destroyed B-75 Beast 29441 | -5/Garrison | Entered Factory 29441 | -4/Factory | Accompanied by 3 allies 29441 | -4/Factory | Evolved 2 slots: Propulsion x2 29699 | -4/Factory | Adv. System Shield fried by hacking feedback 29702 | -4/Factory | Garrison activated, responded to threat 30117 | -4/Factory | Garrison activated, responded to threat 30338 | -4/Factory | Build established: Hacker-Mutant 30537 | -4/Factory | Fabricated Adv. Hacking Suite (x1) 30544 | -4/Factory | Repaired Hvy. Treads? 30590 | -4/Factory | Fabricated Adv. Remote Datajack? 30682 | -4/Factory | Discovered new exit (range 57) 30763 | -4/Factory | Repaired Tesla Bomb Launcher 31224 | -4/Factory | Fabricated Tesla Bomb Launcher (x1) 31230 | -4/Factory | Local fabrication network quarantined 31492 | -4/Factory | Identified exit to Garrison 31492 | -4/Factory | Entered Garrison 31618 | -4/Garrison | Triggered checkpoint 32295 | -4/Garrison | Garrison Relay disabled 32408 | -4/Garrison | Triggered checkpoint 32408 | -4/Garrison | Triggered checkpoint 32515 | -4/Garrison | Discovered new exit (range 9) 32590 | -4/Garrison | Triggered checkpoint 32671 | -4/Garrison | Garrison Relay disabled 32746 | -4/Garrison | Triggered checkpoint 32856 | -4/Garrison | Triggered checkpoint 32866 | -4/Garrison | Build established: Commander-Mutant 32907 | -4/Garrison | Discovered new exit (range 10) 33040 | -4/Garrison | Triggered checkpoint 33069 | -4/Garrison | Discovered new exit (range 13) 33099 | -4/Garrison | Expanded RIF knowledge: Autooverride 33174 | -4/Garrison | Garrison Relay disabled 33401 | -4/Garrison | Build established: Bothacker-Mutant 33691 | -4/Garrison | Entered Research 33691 | -3/Research | Accompanied by 8 allies 33691 | -3/Research | Evolved 2 slots: Power x1, Utility x1 33761 | -3/Research | Build established: Botlord-Mutant 33792 | -3/Research | Garrison activated, responded to threat 34005 | -3/Research | Garrison activated, responded to threat 34034 | -3/Research | Hacking Suite fried by hacking feedback 34115 | -3/Research | Identified exit to Garrison 34139 | -3/Research | Crushed by falling debris 34139 | -3/Research | System corruption reached 10% 34170 | -3/Research | Lost 5 parts (1n4u) 34274 | -3/Research | Spotted B-86 Titan 34298 | -3/Research | Destroyed B-86 Titan 34436 | -3/Research | Entered Garrison 34436 | -3/Garrison | Accompanied by 2 allies 34438 | -3/Garrison | Build established: Bothacker-Mutant 34706 | -3/Garrison | Triggered checkpoint 34823 | -3/Garrison | Garrison Relay disabled 37288 | -3/Garrison | Triggered checkpoint 37298 | -3/Garrison | Spotted B-86 Titan 37300 | -3/Garrison | Triggered checkpoint 37315 | -3/Garrison | Destroyed B-86 Titan 37352 | -3/Garrison | Triggered checkpoint 37385 | -3/Garrison | Destroyed 7 combat bots 37466 | -3/Garrison | Discovered new exit (range 9) 37582 | -3/Garrison | Discovered new exit (range 10) 37721 | -3/Garrison | Discovered new exit (range 12) 37750 | -3/Garrison | Expanded RIF knowledge: Hotswap 37799 | -3/Garrison | Triggered checkpoint 37996 | -3/Garrison | Triggered checkpoint 38026 | -3/Garrison | Garrison Relay disabled 38086 | -3/Garrison | Build established: Botlord-Mutant 38186 | -3/Garrison | Triggered checkpoint 38205 | -3/Garrison | Garrison Relay disabled 38334 | -3/Garrison | Triggered checkpoint 38385 | -3/Garrison | Garrison Relay disabled 38466 | -3/Garrison | Entered Research 38466 | -3/Research | Accompanied by 1 ally 38780 | -3/Research | Found Launcher Loader 38785 | -3/Research | Found Prototype Slashing Weapon 38786 | -3/Research | Identified Nanosword 38911 | -3/Research | Identified exit to Garrison 38911 | -3/Research | Entered Garrison 38920 | -3/Garrison | Expanded RIF knowledge: Crosswire 38959 | -3/Garrison | Triggered checkpoint 38999 | -3/Garrison | Garrison Relay disabled 39111 | -3/Garrison | Triggered checkpoint 39117 | -3/Garrison | Triggered checkpoint 39129 | -3/Garrison | Spotted B-86 Titan 39136 | -3/Garrison | Destroyed B-86 Titan 39157 | -3/Garrison | Destroyed 14 combat bots 39264 | -3/Garrison | Triggered checkpoint 39276 | -3/Garrison | Triggered checkpoint 39375 | -3/Garrison | Discovered new exit (range 11) 39642 | -3/Garrison | Triggered checkpoint 39667 | -3/Garrison | Garrison Relay disabled 40160 | -3/Garrison | Garrison Relay disabled 40174 | -3/Garrison | Triggered checkpoint 40265 | -3/Garrison | Triggered checkpoint 40550 | -3/Garrison | Discovered new exit (range 9) 40569 | -3/Garrison | Entered Research 40569 | -2/Research | Accompanied by 3 allies 40569 | -2/Research | Evolved 2 slots: Utility x2 41069 | -2/Research | First assault squad dispatched 41580 | -2/Research | Lost 3 parts (3u) 41802 | -2/Research | Spotted B-90 Cyclops 42128 | -2/Research | Identified exit to Garrison 42128 | -2/Research | Entered Garrison 42128 | -2/Garrison | Accompanied by 1 ally 42304 | -2/Garrison | Triggered checkpoint 42368 | -2/Garrison | Garrison Relay disabled 42981 | -2/Garrison | Triggered checkpoint 42986 | -2/Garrison | Triggered checkpoint 42991 | -2/Garrison | Spotted B-90 Cyclops 43003 | -2/Garrison | Destroyed B-90 Cyclops 43358 | -2/Garrison | Triggered checkpoint 43400 | -2/Garrison | Destroyed 7 combat bots 43685 | -2/Garrison | Garrison Relay disabled 43737 | -2/Garrison | Discovered new exit (range 15) 43991 | -2/Garrison | Discovered new exit (range 14) 44028 | -2/Garrison | Expanded RIF knowledge: Robot Detection 44110 | -2/Garrison | Garrison Relay disabled 44209 | -2/Garrison | Discovered new exit (range 12) 44604 | -2/Garrison | Entered Research 44604 | -2/Research | Accompanied by 1 ally 44854 | -2/Research | Garrison activated, responded to threat 44867 | -2/Research | Identified exit to Garrison 44867 | -2/Research | Entered Garrison 44956 | -2/Garrison | Triggered checkpoint 45013 | -2/Garrison | Garrison Relay disabled 45150 | -2/Garrison | Triggered checkpoint 45155 | -2/Garrison | Triggered checkpoint 45158 | -2/Garrison | Spotted B-90 Cyclops 45179 | -2/Garrison | Destroyed 7 combat bots 45387 | -2/Garrison | Destroyed B-90 Cyclops 45499 | -2/Garrison | Found Quantum Capacitor 45521 | -2/Garrison | Triggered checkpoint 45554 | -2/Garrison | Triggered checkpoint 45662 | -2/Garrison | Discovered new exit (range 9) 45773 | -2/Garrison | Discovered new exit (range 15) 45812 | -2/Garrison | Triggered checkpoint 45881 | -2/Garrison | Garrison Relay disabled 46043 | -2/Garrison | Discovered new exit (range 10) 46069 | -2/Garrison | Expanded RIF knowledge: Signal Jamming 46079 | -2/Garrison | Entered Access 46079 | -1/Access | Evolved 2 slots: Utility x2 46329 | -1/Access | First assault squad dispatched 46788 | -1/Access | Destroyed 7 combat bots 46865 | -1/Access | Lost 3 parts (1p2u) 46922 | -1/Access | Adv. Hacking Suite fried by hacking feedback 47562 | -1/Access | Destroyed 7 combat bots 47664 | -1/Access | Destroyed 11 combat bots 47941 | -1/Access | Found Gamma Bomb Array 48023 | -1/Access | Found Prototype Device 48024 | -1/Access | Identified Exp. Focal Shield 48081 | -1/Access | High security lockdown imminent 48119 | -1/Access | Destroyed 11 combat bots 48161 | -1/Access | High security lockdown engaged 48228 | -1/Access | Destroyed Striker 48233 | -1/Access | System corruption reached 10% 48321 | -1/Access | Destroyed 8 combat bots 48385 | -1/Access | Spotted Striker 48405 | -1/Access | Spotted Executioner 48417 | -1/Access | Destroyed Striker 48420 | -1/Access | Destroyed Executioner 48450 | -1/Access | Lost 3 parts (1p1u1w) 48464 | -1/Access | Destroyed 12 combat bots 48476 | -1/Access | Spotted Investigator 48480 | -1/Access | Scanned by Researcher 48482 | -1/Access | Destroyed Investigator 48517 | -1/Access | Found Prototype Launcher 48517 | -1/Access | Identified Containment Facilitator 48524 | -1/Access | Spotted Investigator 48560 | -1/Access | Lost 6 parts (1n3u2w) 48560 | -1/Access | Destroyed Investigator 48680 | -1/Access | Spotted Striker 48680 | -1/Access | Spotted Striker 48689 | -1/Access | System corruption reached 30% 48704 | -1/Access | Core integrity fell below 50% 48732 | -1/Access | Lost 17 parts (1p4n11u1w) 48732 | -1/Access | Core integrity fell below 20% 48738 | -1/Access | Spotted Executioner 48742 | -1/Access | Destroyed by Executioner with Helical Railgun Last Messages --------------- 48703_ Nanosword blown off. 48703_ E-15 Imp destroyed. 48704_ Knocked back. 48705_ P-80 Master resets B-74 Champion, system corruption cleaned. 48706_ C-30 ARC bursts open, deploying its payload. 48706_ G-73 Enforcer unfolds itself. 48706_ B-74 Champion unfolds itself. 48706_ G-73 Enforcer unfolds itself. 48708_ System corrupted: Heat flow error (+127). 48709_ E-15 Imp destroyed. 48711_ Acquired 84 matter. 48725_ RATPURNSCPHZIG TL>R 48739_ Door malfunctions. 48739_ Penetrated by Slug. 48739_ Slug penetrates Wall. 48740_ K-01 Serf collects debris. 48742_ Penetrated by Slug. [Achievement: Magneto] [Achievement: Rambo] Map ----- +----------------------------------------------------+ | #*! %[[%=%= #????????????? | | /% =%=%% #????????????? | | #% == ! #????????????? | | # === % #????????????? | | # =%= #????????????? | | #######+###/#############+###########????????????? | | #????# * #???? ?????????????????????? | | #????# * #?? ???????????????????? | | #????# ! """"" ## ?????????????????? | | ?????#**] """"" ## g #????????????????? | | ###### ] """"" ## """""" #????????????????? | | # + """"" ## """""" #????????????????? | | # #### """""? ## """""" #????????????????? | | #+##?# """"????# """""" #????????????????? | | = #?# ???# ??????? #????????????????? | | = #?# = ??# ????????? #????????????????? | | #?# = ?# ????????????????????????????? | | " !#?# ##?????????????????????????????? | | #?##############??????????????????????????????? | | ##????????????????????????????????????????????? | | ##????????????????????????????????????????????? | | ##???????????????????????????????????????????? | | =* #######????##???????????????????????????????? | | /###= #???## #?#######??????????????????????? | | = =%[ #####;;;## K #??????????????????????? | | | =% ! [[= @#####??????????????????? | | *%= p=%p %% m%[! g g ??????????????? | | == p%p b g[%=g]#########??????????????? | | = ##/###/### E #??????????????????????? | | # ####+####?????????????????????? | | ###+#### #??? ?????????????????????? | | ### ??# #????l ????????????????????? | | ??# # #???? % ????????????????# | | ??# " # #????%%% ???????????????# | | ### """ # #??###h#####??????????????# | | !!# """ # #??# # "###???????????????# | | !!# " # #??# " " #???????????????# | | ! # ?? # #??# "!%!##???????????????+ | | # ???############"/%]! #???????????????# | | # ??# !!!!##???????????????# | | ######???# !%%=################## | | #?######## =/* "%" b b | | #?# # ! # " "g | | #?# #! = # "%" | | #/### # !%= % /" ! """ """ | | # # ][* =%!# """"""" | | # # ][ ! # """"""" | | / # | ! # """"" | | # # # """"""" % ###+ | | # # / # ^ """"""" " | +----------------------------------------------------+ Best States ------------- Heat Dissipation 99 Energy Generation 57 Energy Capacity 1990 Matter Stores 581 Matter Capacity 1800 Sight Range 16 Terrain Scan Density 10 Jamming Range 8 Power Amplification 30 Armor Coverage 2400 Resistance: KI 30 Resistance: TH 30 Resistance: EM 90 Weapon Shielding 66 Evasion (%) 55 Targeting Accuracy 8 Launcher Accuracy 40 Core Analysis 10 Recoil Reduction 4 Matter Filtering 30 Energy Filtering 50 Offensive Hacking 40 Defensive Hacking 14 Relay Coupler Types 150 Relay Coupler Value 8 Item Schematics ----------------- Hcp. Storage Unit | -10/Materials | Hacked Med. Storage Unit | -10/Materials | Hacked Transport Network Coupler | -9/Materials | Hacked Hacking Suite | -9/Materials | Scanalyzed Plasma Cutter | -9/Materials | Scanalyzed System Shield | -8/Materials | Hacked Tesla Bomb Launcher | -7/Factory | Hacked Imp. System Backup Module | -7/Factory | Hacked Adv. System Shield | -5/Factory | Hacked Adv. Hacking Suite | -5/Factory | Scanalyzed Robot Schematics ------------------ None Fabricated ------------ System Shield | x1 | -7/Factory Imp. System Backup Module | x2 | -7/Factory Tesla Bomb Launcher | x1 | -7/Factory Adv. System Shield | x1 | -5/Factory Adv. System Shield | x1 | -5/Factory Adv. Hacking Suite | x1 | -4/Factory Adv. Remote Datajack | x1 | -4/Factory | Preloaded Tesla Bomb Launcher | x1 | -4/Factory Alien Tech Used ----------------- None Achievements -------------- Magneto Preemptive Strike Pwned Rambo Shocking Conclusion Challenges ------------ None Game ------ Seed ChainDimensionalWell Manual? 0 Play Time 06:45:42 Cumulative 445.6 hours Start 2021.07.29 @ 15:59:12 End 2021.07.30 @ 02:26:03 Sessions 5 Manual Loads 0 Difficulty Rogue Special Mode None Game No. 347 Rogue 347 Adventurer 0 Explorer 0 Win Type - Total 1 Types 0/0/0/1/0/0/0/0/0 Lore% 72 Gallery% 82 Achievement% 62 Wizard Run 0 Options --------- ASCII 0 Keyboard 1 Movement Numpad Keybinds 0 Fullscreen 1 Font 12/Terminus Map View 83x54 Tactical HUD 1 Map Filters NONE Filters NONE Steam 1 RUN: 68eaad53-5944-40f6-a40d-4aa3697fe9e2